fUSD/lending_fUSD_20251112
["ID","MTS","AMOUNT","RATE_DAILY","PERIOD"]
[393786443,1762985476757,-500.0,0.00031673,5]
[393786445,1762985527952,250.0,0.00040636,30]
[393786446,1762985528010,250.0,0.00040636,30]
[393786447,1762985528409,151.0,0.00040636,30]
[393786448,1762985528465,151.0,0.00040636,30]
[393786449,1762985528691,250.0,0.00040636,30]
[393786450,1762985528925,250.0,0.00040636,30]
[393786451,1762985529054,151.0,0.00040636,30]
[393786452,1762985529111,151.0,0.00040636,30]
[393786453,1762985529338,250.0,0.00040636,30]
[393786454,1762985529549,250.0,0.00040636,30]
[393786455,1762985529764,151.0,0.00040636,30]
[393786456,1762985529815,151.0,0.00040636,30]
[393786457,1762985529963,250.0,0.00040636,30]
[393786458,1762985530250,250.0,0.00040636,30]
[393786459,1762985530568,151.0,0.00040636,30]
[393786460,1762985530724,250.0,0.00040636,30]
[393786461,1762985530778,250.0,0.00040636,30]
[393786462,1762985530903,250.0,0.00040636,30]
[393786463,1762985531164,151.0,0.00040636,30]
[393786464,1762985531338,250.0,0.00040636,30]
[393786465,1762985531390,250.0,0.00040636,30]
[393786466,1762985531519,250.0,0.00040636,30]
[393786467,1762985531767,151.0,0.00040636,30]
[393786468,1762985531973,250.0,0.00040636,30]
[393786469,1762985532031,250.0,0.00040636,30]
[393786470,1762985532460,151.0,0.00040636,30]
[393786471,1762985532785,250.0,0.00040636,30]
[393786472,1762985532853,250.0,0.00040636,30]
[393786473,1762985533059,151.0,0.00040636,30]
[393786474,1762985533352,250.0,0.00040636,30]
[393786475,1762985533402,250.0,0.00040636,30]
[393786476,1762985533750,151.0,0.00040636,30]
[393786477,1762985534864,151.0,0.00040636,30]
[393786478,1762985535482,151.0,0.00040636,30]
[393786479,1762985536075,151.0,0.00040636,30]
[393786480,1762985536133,300.0,0.00040636,30]
[393786481,1762985536551,250.0,0.00040636,30]
[393786482,1762985536704,151.0,0.00040636,30]
[393786483,1762985536756,300.0,0.00040636,30]
[393786484,1762985537305,250.0,0.00040636,30]
[393786485,1762985537361,151.0,0.00040636,30]
[393786486,1762985537928,151.0,0.00040636,30]
[393786487,1762985538098,250.0,0.00040636,30]
[393786488,1762985538550,151.0,0.00040636,30]
[393786489,1762985538602,151.0,0.00040636,30]
[393786490,1762985538858,250.0,0.00040636,30]
[393786491,1762985539191,151.0,0.00040636,30]
[393786492,1762985539337,151.0,0.00040636,30]
[393786493,1762985539387,250.0,0.00040636,30]
[393786494,1762985539824,151.0,0.00040636,30]
[393786495,1762985540005,151.0,0.00040636,30]
[393786496,1762985540058,250.0,0.00040636,30]
[393786497,1762985540454,151.0,0.00040636,30]
[393786498,1762985540619,151.0,0.00040636,30]
[393786499,1762985540669,250.0,0.00040636,30]
[393786500,1762985541071,151.0,0.00040636,30]
[393786501,1762985541236,151.0,0.00040636,30]
[393786502,1762985541290,250.0,0.00040636,30]
[393786503,1762985541686,151.0,0.00040636,30]
[393786504,1762985541929,250.0,0.00040636,30]
[393786505,1762985542296,151.0,0.00040636,30]
[393786506,1762985542960,151.0,0.00040636,30]
[393786507,1762985543570,151.0,0.00040636,30]
[393786508,1762985544265,151.0,0.00040636,30]
[393786509,1762985544831,151.0,0.00040636,30]
[393786510,1762985545439,151.0,0.00040636,30]
[393786511,1762985546047,151.0,0.00040636,30]
[393786512,1762985546669,151.0,0.00040636,30]
[393786513,1762985547273,151.0,0.00040636,30]
[393786514,1762985547882,151.0,0.00040636,30]
[393786515,1762985548493,151.0,0.00040636,30]
[393786516,1762985549083,151.0,0.00040636,30]
[393786517,1762985549716,151.0,0.00040636,30]
[393786518,1762985550019,200.0,0.00040636,30]
[393786519,1762985550625,207.4,0.00040636,30]
[393786520,1762985550804,151.0,0.00040636,30]
[393786521,1762985551262,215.0738,0.00040636,30]
[393786522,1762985551842,223.0315306,0.00040636,30]
[393786523,1762985552425,231.28369723,0.00040636,30]
[393786524,1762985553320,239.84119403,0.00040636,30]
[393786526,1762985553696,248.71531821,0.00040636,30]
[393786527,1762985554796,257.91778498,0.00040636,30]
[393786528,1762985555406,257.91778498,0.00040636,30]
[393786532,1762985611872,500.0,0.00040636,30]
[393786657,1762985835207,151.0,0.00040636,30]
[393786658,1762985835808,151.0,0.00040636,30]
[393786659,1762985836417,151.0,0.00040636,30]
[393786660,1762985837040,151.0,0.00040636,30]
[393786661,1762985837654,151.0,0.00040636,30]
[393786662,1762985837856,250.0,0.00040636,30]
[393786663,1762985838268,151.0,0.00040636,30]
[393786664,1762985838912,151.0,0.00040636,30]
[393786665,1762985839567,151.0,0.00040636,30]
[393786666,1762985840215,151.0,0.00040636,30]
[393786667,1762985840818,151.0,0.00040636,30]
[393786668,1762985841440,151.0,0.00040636,30]
[393786669,1762985842061,151.0,0.00040636,30]
[393786670,1762985842865,151.0,0.00040636,30]
[393786672,1762985934724,250.0,0.00017,2]
[393786673,1762985948000,195.0,0.00029904,120]
[393786674,1762985957522,-421.98745115,0.00029854,2]
[393786675,1762985957550,-1013.8261,0.00029954,2]
[393786676,1762985957579,-234.5545,0.00029954,2]
[393786677,1762985957610,-195.0,0.00030896,120]
[393786678,1762985957637,-212.09424376,0.00031488,2]
[393786679,1762985957666,-500.0,0.00031588,2]
[393786680,1762985957695,-500.0,0.00031598,2]
[393786681,1762985957724,-500.0,0.00031608,2]
[393786682,1762985957753,-500.0,0.00031608,2]
[393786683,1762985957867,150.0,0.00028535,2]
[393786684,1762986008262,1368.773741,7.945e-05,2]
[393786685,1762986061509,3500.0,0.00040636,30]
[393786695,1762986308620,10000.01,0.00018,2]
[393786696,1762986308646,17264.226259,0.00018,2]
[393786697,1762986308671,50000.0,0.00018,2]
[393786698,1762986308695,50000.0,0.00018,2]
[393786699,1762986308726,3725120.15546644,0.00018,2]
[393786701,1762986362188,195.0,0.0002904,120]
[393786703,1762986367849,2642.395186,7.945e-05,2]
[393786706,1762986432779,1139.01,0.0001902,2]
[393786707,1762986432986,1139.01,0.00019982,2]
[393786708,1762986433202,1139.01,0.00020943,2]
[393786709,1762986433409,1139.01,0.00021905,2]
[393786710,1762986433608,1139.01,0.00022867,2]
[393786711,1762986433837,1139.01,0.00023829,2]
[393786712,1762986434052,523.554814,0.00024791,2]
[393786713,1762986435668,-615.455186,0.00024791,2]
[393786716,1762986443797,8769.099628,0.0002,2]
[393786717,1762986456028,-868.81612824,0.0002,2]
[393786722,1762986459024,-10000.01,0.0002,2]
[393786724,1762986464131,2195.21217614,0.00013,2]
[393786725,1762986470891,364839.19065433,0.00017,2]
[393786730,1762986487699,-185.92881699,0.0002,2]
[393786731,1762986487796,1243.386245,7.945e-05,2]
[393786741,1762986503811,-200.0,0.0002,2]
[393786751,1762986509978,-314.06323891,0.0002,2]
[393786766,1762986515182,-245.32,0.0002,2]
[393786777,1762986518323,-157.27830987,0.0002,2]
[393786784,1762986520360,-166.66,0.0002,2]
[393786785,1762986525955,-165.24778131,0.0002,2]
[393786786,1762986528757,-195.0,0.0002,2]
[393786787,1762986533599,-152.87,0.0002,2]
[393786788,1762986536293,-179.03468423,0.0002,2]
[393786789,1762986537887,-300.0,0.0002,2]
[393786790,1762986542119,-300.0,0.0002,2]
[393786792,1762986544909,-305.15546868,0.0002,2]
[393786794,1762986550406,-217.72040068,0.0002,2]
[393786795,1762986552137,-365.67096414,0.0002,2]
[393786796,1762986557293,-239.84119403,0.0002,2]
[393786797,1762986559681,-205.81,0.0002,2]
[393786798,1762986565631,-300.0,0.0002,2]
[393786799,1762986567118,-1545.08840147,0.0002,2]
[393786800,1762986567140,-190.55762932,0.00025752,2]
[393786804,1762986610427,195.0,0.00028328,120]
[393786810,1762986631696,-357.41173712,0.00025752,2]
[393786813,1762986631711,-321.271995,0.00025752,2]
[393786815,1762986631725,-269.76863856,0.00025752,2]
[393786817,1762986631738,-97.85380647,0.00026373,2]
[393786818,1762986631762,-402.14619353,0.00026373,2]
[393786819,1762986631775,-157.10299517,0.00026399,2]
[393786820,1762986631795,-281.89700483,0.00026399,2]
[393786821,1762986631807,-300.0,0.00026399,2]
[393786822,1762986631820,-32.47690092,0.00026399,2]
[393786823,1762986631835,-267.52309908,0.00026399,2]
[393786824,1762986631847,-1200.0,0.00026399,2]
[393786825,1762986631860,-27169.54666906,0.000264,2]
[393786826,1762986631872,-1139.01,0.00026714,2]
[393786827,1762986631883,-198.58946569,0.00026921,2]
[393786828,1762986631895,-250.0,0.00027,2]
[393786829,1762986631907,-1021.7657068,0.00027,2]
[393786830,1762986631919,-530.0,0.00027,2]
[393786831,1762986631930,-700.0,0.00027389,2]
[393786832,1762986631943,-4062.92683639,0.0002739,2]
[393786833,1762986631955,-8026.35628533,0.0002739,2]
[393786834,1762986631967,-198.73424594,0.000275,2]
[393786835,1762986631979,-542.89662444,0.000275,2]
[393786836,1762986631990,-1139.01,0.00027676,2]
[393786837,1762986632002,-1429.21700296,0.00027777,2]
[393786838,1762986632014,-250.0,0.00028328,2]
[393786839,1762986632027,-153.88,0.00028534,2]
[393786840,1762986632041,-420.0,0.00028558,2]
[393786841,1762986632054,-1139.01,0.00028638,2]
[393786843,1762986632067,-1200.0,0.00028685,2]
[393786844,1762986632080,-300.0,0.00029029,2]
[393786845,1762986632094,-250.0,0.0002904,2]
[393786846,1762986632107,-1139.01,0.000296,2]
[393786847,1762986632120,-1139.01,0.00030561,2]
[393786848,1762986632132,-587.0,0.00030893,2]
[393786849,1762986632145,-61767.48812606,0.0003095,2]
[393786850,1762986632160,-544.02,0.0003095,2]
[393786851,1762986632211,-4183.28739952,0.0003095,2]
[393786852,1762986632224,-6288.95060973,0.0003143,4]
[393786853,1762986632235,-1139.01,0.00031523,2]
[393786854,1762986632248,-1139.01,0.00032485,2]
[393786855,1762986632261,-881.11861569,0.00032756,2]
[393786856,1762986632273,-500.0,0.00033,5]
[393786857,1762986632287,-823.0,0.0003342,2]
[393786858,1762986632297,-1139.01,0.00033447,2]
[393786859,1762986632306,-500.0,0.00033889,2]
[393786860,1762986632315,-220.0,0.00034343,2]
[393786861,1762986632324,-1139.01,0.00034408,2]
[393786862,1762986632334,-1707.79896002,0.0003449,2]
[393786863,1762986632344,-156.203307,0.0003452,20]
[393786864,1762986632354,-161.644429,0.0003452,20]
[393786865,1762986632363,-161.644429,0.0003452,20]
[393786866,1762986632372,-202.103552,0.0003452,20]
[393786867,1762986632381,-202.103552,0.0003452,20]
[393786868,1762986632390,-202.103552,0.0003452,20]
[393786869,1762986632627,-151.577664,0.0003452,20]
[393786870,1762986632640,-151.577664,0.0003452,20]
[393786871,1762986632650,-500.0,0.000346,5]
[393786872,1762986632660,-181.67660261,0.000349,120]
[393786873,1762986632669,-500.0,0.00034959,2]
[393786874,1762986632679,-709.69,0.00035138,5]
[393786875,1762986632688,-546.12651751,0.00035148,5]
[393786876,1762986632698,-1139.01,0.0003537,2]
[393786877,1762986632707,-1000.0,0.00036,19]
[393786878,1762986632716,-200.0,0.00036031,2]
[393786879,1762986632725,-257.25436511,0.00036147,2]
[393786880,1762986632734,-1152.0,0.00036153,2]
[393786881,1762986632744,-2500.0,0.00036296,2]
[393786882,1762986632753,-1139.01,0.00036332,2]
[393786883,1762986632762,-2500.0,0.00036358,2]
[393786884,1762986632771,-2500.0,0.00036492,2]
[393786885,1762986632780,-4499.67,0.00036581,2]
[393786886,1762986632792,-1000.0,0.00036584,30]
[393786887,1762986632804,-1000.0,0.00036584,30]
[393786888,1762986632813,-150.0,0.00036903,7]
[393786889,1762986632822,-300.0,0.00036947,7]
[393786890,1762986632833,-1000.0,0.00037,25]
[393786891,1762986632843,-300.0,0.00037084,7]
[393786892,1762986632852,-240.58221848,0.00037138,2]
[393786893,1762986632861,-1139.01,0.00037294,2]
[393786894,1762986632871,-1852.42,0.00037352,2]
[393786895,1762986632881,-1000.0,0.00037522,2]
[393786896,1762986632890,-1258.89,0.00037668,2]
[393786897,1762986632900,-343.55,0.0003794,2]
[393786898,1762986632909,-506.66,0.00037957,120]
[393786899,1762986632919,-16426.22859991,0.0003797,2]
[393786900,1762986632928,-1501.95878155,0.00037999,3]
[393786901,1762986632937,-1000.0,0.00038,34]
[393786902,1762986632946,-4801.8220223,0.00038,120]
[393786903,1762986632955,-500.0,0.00038,5]
[393786904,1762986632965,-500.0,0.00038,5]
[393786905,1762986632974,-500.0,0.00038,5]
[393786906,1762986632983,-500.59586088,0.00038,5]
[393786907,1762986632994,-463.41812963,0.00038052,6]
[393786908,1762986633004,-2751.0,0.00038262,120]
[393786909,1762986633013,-250.0,0.00038292,2]
[393786910,1762986633022,-1000.0,0.00038315,2]
[393786911,1762986633034,-200.0,0.00038436,2]
[393786912,1762986633043,-1621.092,0.00038436,51]
[393786913,1762986633052,-1205.08355555,0.000386,120]
[393786914,1762986633062,-218.42739722,0.00038765,2]
[393786915,1762986633071,-399.84661035,0.000389,31]
[393786916,1762986633080,-218.42739722,0.00038953,2]
[393786917,1762986633090,-1000.0,0.00039,43]
[393786918,1762986633099,-1122.0,0.00039109,5]
[393786919,1762986633109,-6815.59350677,0.0003918,120]
[393786920,1762986633118,-2000.0,0.000392,2]
[393786921,1762986633127,-218.42739722,0.00039204,2]
[393786922,1762986633137,-168.0,0.00039245,7]
[393786923,1762986633146,-168.0,0.00039258,120]
[393786924,1762986633157,-168.0,0.00039323,2]
[393786925,1762986633166,-500.0,0.00039429,2]
[393786926,1762986633176,-218.42739722,0.00039631,2]
[393786927,1762986633186,-168.0,0.00039651,2]
[393786928,1762986633195,-25495.005414,0.00039769,2]
[393786929,1762986633208,-1053.03409589,0.00039769,2]
[393786930,1762986633219,-776.1343704,0.00039769,2]
[393786931,1762986633228,-168.0,0.00039795,2]
[393786932,1762986633238,-797.2953444,0.000398,7]
[393786933,1762986633252,-710.4772749,0.000398,7]
[393786934,1762986633264,-415.53225221,0.000398,7]
[393786935,1762986633275,-1658.7710904,0.000398,7]
[393786943,1762986637607,-184.74,0.00031393,2]
[393786945,1762986637617,-458.85904091,0.0003974,7]
[393786946,1762986637627,-2010.53811866,0.000398,7]
[393786947,1762986637639,-10001.0,0.000398,7]
[393786948,1762986637671,-50651.96501313,0.000398,7]
[393786949,1762986637681,-27324.17388025,0.00039854,15]
[393786950,1762986637690,-168.0,0.00039869,120]
[393786951,1762986637700,-1300.0,0.000399,14]
[393786952,1762986637709,-289.4139164,0.000399,120]
[393786953,1762986637718,-168.0,0.00039934,7]
[393786954,1762986637727,-27324.17388025,0.00039939,15]
[393786955,1762986637736,-218.42739722,0.00039962,2]
[393786956,1762986637746,-168.0,0.00039991,2]
[393786957,1762986637755,-2600.0,0.0004,14]
[393786958,1762986637764,-500.0,0.0004,60]
[393786959,1762986637774,-1083.59757574,0.0004,2]
[393786960,1762986637785,-172.09582685,0.0004,2]
[393786961,1762986637797,-27324.17388025,0.00040025,15]
[393786962,1762986637806,-151.0,0.00040067,2]
[393786963,1762986637815,-151.0,0.00040067,2]
[393786964,1762986637824,-262.91609284,0.00040067,2]
[393786965,1762986637834,-4834.0,0.00040091,2]
[393786966,1762986637844,-200.37897292,0.00040095,12]
[393786967,1762986637853,-3900.0,0.000401,14]
[393786968,1762986637862,-27324.17388025,0.0004011,15]
[393786969,1762986637875,-218.42739722,0.0004011,2]
[393786970,1762986637884,-200.37897285,0.00040127,12]
[393786971,1762986637894,-200.37897285,0.00040158,12]
[393786973,1762986637903,-200.37897285,0.0004019,12]
[393786975,1762986637912,-27324.17388025,0.00040195,15]
[393786977,1762986637921,-5200.0,0.000402,14]
[393786979,1762986637931,-200.37897285,0.00040221,12]
[393786981,1762986637940,-2491.9138,0.0004023,3]
[393786983,1762986637950,-200.37897285,0.00040253,12]
[393786985,1762986637959,-2674.0271,0.00040258,2]
[393786987,1762986637969,-729.8436,0.00040258,2]
[393786989,1762986637979,-2447.0743,0.00040258,2]
[393786991,1762986637989,-27324.17388025,0.0004028,15]
[393786993,1762986637999,-200.37897285,0.00040284,12]
[393786995,1762986638009,-6500.0,0.000403,14]
[393786997,1762986638019,-200.37897285,0.00040316,12]
[393786999,1762986638028,-1000.0,0.00040326,2]
[393787001,1762986638039,-2500.0,0.00040326,2]
[393787003,1762986638048,-192.51418077,0.00040326,16]
[393787005,1762986638058,-219.18023189,0.00040329,15]
[393787007,1762986638068,-166.87321661,0.00040336,14]
[393787009,1762986638079,-200.37897285,0.00040347,12]
[393787011,1762986638089,-189.52352554,0.00040365,2]
[393787013,1762986638099,-192.51418077,0.00040365,16]
[393787015,1762986638108,-27324.17388025,0.00040366,15]
[393787017,1762986638117,-200.37897285,0.00040379,12]
[393787019,1762986638127,-1000.0,0.00040386,7]
[393787021,1762986638137,-1300.0,0.000404,14]
[393787024,1762986638147,-200.37897285,0.0004041,12]
[393787026,1762986638156,-20036.15668237,0.00040416,4]
[393787028,1762986638168,-415.35271108,0.00040416,4]
[393787034,1762986638217,-766.68715685,0.00040416,4]
[393787036,1762986638228,-642.12284043,0.00040416,4]
[393787062,1762986639675,-16139.77170987,0.00040416,4]
[393787063,1762986639685,-9500.02277516,0.00040425,4]
[393787064,1762986639695,-500.0,0.00040425,2]
[393787065,1762986639704,-9500.02277516,0.00040425,4]
[393787066,1762986639714,-218500.523829,0.00040426,4]
[393787067,1762986639723,-150.25,0.00040426,2]
[393787068,1762986639733,-9500.02277516,0.00040427,4]
[393787069,1762986639742,-5800.0,0.00040429,14]
[393787070,1762986639751,-2491.91381,0.0004043,4]
[393787071,1762986639761,-191.58340729,0.00040431,15]
[393787072,1762986639770,-280.0,0.00040433,4]
[393787073,1762986639780,-500.0,0.00040435,2]
[393787074,1762986639793,-500.0,0.00040435,2]
[393787075,1762986639802,-27922.2992,0.00040436,2]
[393787076,1762986639812,-420000.0,0.00040436,2]
[393787077,1762986639822,-1000.0,0.00040436,2]
[393787078,1762986639833,-3002.4914,0.00040436,2]
[393787079,1762986639844,-200.37897285,0.00040442,12]
[393787080,1762986639855,-4218.2319011,0.00040445,2]
[393787081,1762986639867,-9500.02277516,0.00040449,4]
[393787082,1762986639876,-189.52352554,0.00040451,2]
[393787083,1762986639886,-27324.17388025,0.00040451,15]
[393787084,1762986639896,-218.42739726,0.00040465,2]
[393787085,1762986639905,-9500.02277516,0.00040466,4]
[393787086,1762986639914,-500.0,0.00040473,5]
[393787087,1762986639924,-500.0,0.00040473,5]
[393787088,1762986639933,-504.01655372,0.00040473,5]
[393787089,1762986639943,-200.37897285,0.00040473,12]
[393787090,1762986639952,-3099.0,0.00040476,5]
[393787091,1762986639962,-9998.9052,0.000405,2]
[393787092,1762986639971,-1300.0,0.000405,14]
[393787093,1762986639981,-451.85,0.000405,14]
[393787094,1762986639990,-200.37897285,0.00040505,12]
[393787095,1762986640000,-1597.0,0.00040505,2]
[393787096,1762986640009,-821.0,0.00040505,2]
[393787109,1762986640166,-813.0,0.00040505,2]
[393787110,1762986640177,-1274.0,0.00040505,2]
[393787111,1762986640187,-580.162,0.00040505,2]
[393787112,1762986640196,-1189.0,0.00040505,2]
[393787113,1762986640205,-608.0,0.00040505,2]
[393787114,1762986640214,-3427.0,0.00040505,2]
[393787115,1762986640224,-6666.0,0.00040505,2]
[393787117,1762986640233,-2143.0,0.00040505,2]
[393787120,1762986640242,-500.0,0.00040533,2]
[393787122,1762986640251,-500.0,0.00040535,2]
[393787124,1762986640261,-500.0,0.00040535,7]
[393787126,1762986640271,-500.0,0.00040535,20]
[393787128,1762986640281,-500.0,0.00040535,20]
[393787130,1762986640291,-500.0,0.00040535,20]
[393787132,1762986640302,-500.0,0.00040535,20]
[393787134,1762986640311,-500.0,0.00040535,20]
[393787136,1762986640320,-300.0,0.00040536,2]
[393787138,1762986640330,-191.58340729,0.00040536,15]
[393787140,1762986640339,-189.52352554,0.00040536,2]
[393787142,1762986640349,-27324.17388025,0.00040536,15]
[393787144,1762986640358,-588.63016062,0.00040536,8]
[393787146,1762986640367,-200.37897285,0.00040536,12]
[393787148,1762986640376,-504.83378329,0.00040573,5]
[393787150,1762986640386,-500.0,0.00040596,30]
[393787152,1762986640396,-5000.0,0.000406,120]
[393787154,1762986640405,-150.0,0.000406,60]
[393787156,1762986640414,-1300.0,0.000406,14]
[393787158,1762986640423,-500.0,0.00040622,2]
[393787160,1762986640433,-1117.39214498,0.00040625,3]
[393787162,1762986640442,-151.0,0.00040625,14]
[393787164,1762986640451,-500.0,0.00040625,2]
[393787166,1762986640460,-150.25,0.00040626,2]
[393787168,1762986640469,-150.25,0.00040626,2]
[393787170,1762986640479,-546328.5919573,0.00040628,2]
[393787172,1762986640488,-1196.6377456,0.0004063,2]
[393787174,1762986640498,-151.0,0.00040633,14]
[393787176,1762986640508,-2000.0,0.00040634,30]
[393787178,1762986640517,-13524.1679204,0.00040635,2]
[393787180,1762986640527,-500.0,0.00040635,2]
[393787182,1762986640536,-500.0,0.00040635,2]
[393787184,1762986640547,-577.2315447,0.00040635,2]
[393787186,1762986640556,-12677.6602552,0.00040635,2]
[393787187,1762986640566,-500.0,0.00040635,2]
[393787188,1762986640575,-500.0,0.00040635,2]
[393787189,1762986640585,-500.0,0.00040635,7]
[393787190,1762986640595,-500.0,0.00040635,7]
[393787191,1762986640604,-500.0,0.00040635,7]
[393787192,1762986640613,-500.0,0.00040635,7]
[393787193,1762986640622,-500.0,0.00040635,7]
[393787194,1762986640632,-500.0,0.00040635,7]
[393787195,1762986640642,-500.0,0.00040635,7]
[393787196,1762986640652,-500.0,0.00040635,7]
[393787197,1762986640661,-500.0,0.00040635,2]
[393787198,1762986640670,-500.0,0.00040635,2]
[393787199,1762986640680,-500.0,0.00040635,2]
[393787200,1762986640689,-500.0,0.00040635,2]
[393787201,1762986640699,-500.0,0.00040635,2]
[393787202,1762986640708,-500.0,0.00040635,2]
[393787203,1762986640718,-183.69568692,0.00040635,20]
[393787204,1762986640728,-999.0,0.00040635,120]
[393787205,1762986640737,-500.0,0.00040635,20]
[393787206,1762986640747,-500.0,0.00040635,20]
[393787207,1762986640756,-500.0,0.00040635,20]
[393787208,1762986640765,-500.0,0.00040635,20]
[393787209,1762986640775,-500.0,0.00040635,20]
[393787210,1762986640785,-500.0,0.00040635,20]
[393787211,1762986640799,-307.45218061,0.00040635,20]
[393787212,1762986640808,-540.13503616,0.00040635,20]
[393787213,1762986640818,-18603.0,0.00040636,2]
[393787214,1762986640828,-200.0,0.00040636,7]
[393787215,1762986640840,-151.0,0.00040636,120]
[393787216,1762986640849,-200.0,0.00040636,7]
[393787217,1762986640859,-151.0,0.00040636,120]
[393787218,1762986640868,-151.0,0.00040636,120]
[393787219,1762986640877,-151.0,0.00040636,120]
[393787220,1762986640887,-151.0,0.00040636,120]
[393787221,1762986640896,-151.0,0.00040636,120]
[393787222,1762986640905,-151.0,0.00040636,120]
[393787223,1762986640915,-151.0,0.00040636,120]
[393787224,1762986640924,-151.0,0.00040636,120]
[393787225,1762986640934,-514.72,0.00040636,30]
[393787226,1762986640944,-151.0,0.00040636,120]
[393787227,1762986640953,-151.0,0.00040636,120]
[393787228,1762986640963,-151.0,0.00040636,120]
[393787229,1762986640972,-151.0,0.00040636,120]
[393787230,1762986640982,-151.0,0.00040636,120]
[393787231,1762986640991,-151.988276,0.00040636,120]
[393787232,1762986641002,-151.0,0.00040636,120]
[393787233,1762986641011,-200.0,0.00040636,7]
[393787234,1762986641021,-151.0,0.00040636,120]
[393787235,1762986641030,-151.0,0.00040636,120]
[393787236,1762986641039,-151.0,0.00040636,120]
[393787237,1762986641049,-253.0,0.00040636,120]
[393787238,1762986641059,-151.0,0.00040636,120]
[393787239,1762986641068,-151.0,0.00040636,120]
[393787240,1762986641078,-151.0,0.00040636,120]
[393787241,1762986641087,-151.0,0.00040636,120]
[393787242,1762986641097,-151.0,0.00040636,120]
[393787243,1762986641107,-151.0,0.00040636,120]
[393787244,1762986641116,-249.723008,0.00040636,120]
[393787245,1762986641126,-151.0,0.00040636,120]
[393787246,1762986641135,-151.0,0.00040636,120]
[393787247,1762986641144,-151.0,0.00040636,120]
[393787248,1762986641153,-151.0,0.00040636,30]
[393787249,1762986641163,-151.0,0.00040636,30]
[393787250,1762986641173,-151.0,0.00040636,120]
[393787251,1762986641183,-151.0,0.00040636,120]
[393787252,1762986641192,-151.0,0.00040636,120]
[393787253,1762986641201,-151.0,0.00040636,120]
[393787254,1762986641211,-151.0,0.00040636,120]
[393787255,1762986641220,-151.0,0.00040636,120]
[393787256,1762986641229,-151.0,0.00040636,120]
[393787257,1762986641239,-151.0,0.00040636,120]
[393787258,1762986641248,-151.0,0.00040636,120]
[393787259,1762986641257,-151.0,0.00040636,120]
[393787260,1762986641266,-151.0,0.00040636,120]
[393787261,1762986641275,-151.0,0.00040636,120]
[393787262,1762986641283,-151.0,0.00040636,120]
[393787263,1762986641292,-151.0,0.00040636,120]
[393787264,1762986641301,-256.2284,0.00040636,120]
[393787265,1762986641310,-151.0,0.00040636,120]
[393787266,1762986641319,-151.0,0.00040636,120]
[393787267,1762986641328,-151.0,0.00040636,120]
[393787268,1762986641337,-151.0,0.00040636,120]
[393787269,1762986641347,-151.0,0.00040636,120]
[393787270,1762986641355,-151.0,0.00040636,120]
[393787271,1762986641364,-151.0,0.00040636,120]
[393787272,1762986641373,-151.0,0.00040636,120]
[393787273,1762986641382,-151.0,0.00040636,120]
[393787274,1762986641392,-212.904252,0.00040636,120]
[393787275,1762986641401,-151.0,0.00040636,120]